[Event "Austrian Bundesliga 2023-24"]
[Site "Austria"]
[Date "2024.03.22"]
[Round "9.21"]
[White "Votava, Jan"]
[Black "Sebenik, Matej"]
[Result "1-0"]
[ECO "E67"]
[WhiteElo "2441"]
[BlackElo "2522"]
[Annotator "TA"]
[PlyCount "115"]
[EventDate "2023.10.21"]
[EventType "team-tourn"]
[EventCountry "AUT"]
[SourceTitle "playchess.com"]
[Source "ChessBase"]
[SourceQuality "1"]
[TimeControl "40/5400+30:1800+30"]

{[%evp 18,115,3,-6,-8,-6,0,0,0,10,4,0,1,9,56,16,45,51,57,0,0,0,0,0,52,40,37,37,88,77,81,82,87,85,90,93,94,96,88,100,104,103,111,87,78,81,83,83,178,181,199,184,200,188,188,183,191,217,311,323,336,335,500,488,531,513,555,598,689,640,780,789,848,837,831,806,1455,1354,1138,1289,1560,599,6311,2409,11461,9798,5698,2956,4528,2073,29947,11897,6125,6125,6087,6083,5683,5540,29986,29987]} 1. d4 {[%emt 0:00:03]} Nf6 {[%emt 0:00:15]} 2. c4 {[%emt 0:00:06]} g6 {[%emt 0:00:16]} 3. Nf3 {[%emt 0:00:11]} Bg7 {[%emt 0:00:13]} 4. g3 {[%emt 0:00:03]} O-O {[%emt 0:01:00]} 5. Bg2 {[%emt 0:00:02]} d6 {[%emt 0:00:06]} 6. O-O {[%emt 0:00:06]} Nbd7 {[%emt 0:00:04]} 7. Nc3 {[%emt 0:00:33]} e5 {[%emt 0:00:07]} 8. e3 {[%emt 0:01:58]} Re8 {[%emt 0:00:36]} 9. b3 {[%emt 0:00:57]} c6 {[%emt 0:02:00]} 10. a4 {[%emt 0:01:02]} Nf8 {[%emt 0:19:04]} 11. dxe5 {[%emt 0:19:00]} dxe5 {[%emt 0:00:05]} 12. Qxd8 {[%emt 0:00:58]} Rxd8 {[%emt 0:00:04] Die Stellung ist ausgeglichen.} 13. a5 {[%emt 0:04:14][%cal Oc1a3]} (13. Nxe5 $2 Ng4 14. Ba3 (14. Nxg4 $2 Bxg4 15. Bb2 Rd2 $19) 14... Nxe5 $19 (14... Bxe5 $2 15. Rad1 $19)) 13... e4 {[%emt 0:17:56]} 14. Nd4 {[%emt 0:03:24][%cal Oc1a3,Bf3d4,Bd4e2,Be2f4][%mdl 32]} c5 {[%emt 0:00:09]} 15. Nde2 {[%emt 0:01:38][%cal Oc1a3]} Ne6 {[%emt 0:20:35]} (15... Bg4 $11) 16. h4 {[%emt 0:08:15][%cal Oa1a2]} (16. Bxe4 $2 Nxe4 17. Nxe4 Bxa1 $19) 16... Nc7 {[%emt 0:01:42]} 17. Ba3 {[%emt 0:06:00]} (17. Bxe4 $2 Nxe4 18. Nxe4 Bxa1 $19) 17... Na6 {[%emt 0:00:19]} 18. Rad1 {[%emt 0:03:05]} (18. Na4 $14) 18... Bg4 $11 {[%emt 0:00:40]} 19. Rxd8+ {[%emt 0:03:02]} Rxd8 {[%emt 0:00:03]} 20. Nf4 {[%emt 0:00:32] Es drohte Rd3} Re8 {[%emt 0:01:37]} (20... Bf3 $11) 21. Nb5 $36 {[%emt 0:04:25][%mdl 2048] Weiss kämpft um Vorteil.} Rd8 {[%emt 0:13:54]} 22. Bb2 {[%emt 0:06:42][%cal Ob2f6]} Nb4 {[%emt 0:00:07]} ({Besser ist} 22... Bf3 $1 $14) 23. Bxf6 $16 {[%emt 0:01:33]} Bxf6 {[%emt 0:00:04]} 24. Bxe4 {[%emt 0:00:45]} (24. Nxa7 Bf5 $11) 24... a6 {[%emt 0:07:52]} 25. Nc7 {[%emt 0:01:13]} Be5 {[%emt 0:00:17]} 26. Ncd5 {[%emt 0:00:37] Nxb4 ist eine echte Drohung.} Nc6 {[%emt 0:00:26][%cal Og8f8]} 27. Rb1 {[%emt 0:14:34]} Kg7 {[%emt 0:02:05]} 28. Nd3 {[%emt 0:00:38] Ein dynamisches Springerpaar.} Bd6 {[%emt 0:00:02] [#]} 29. Ra1 $1 {[%emt 0:01:18]} Re8 {[%emt 0:00:03]} 30. Bg2 {[%emt 0:01:57]} Bf5 {[%emt 0:00:34]} 31. Ne1 {[%emt 0:08:41]} Be5 {[%emt 0:00:37]} 32. Ra4 {[%emt 0:00:34]} Nb4 {[%emt 0:08:30]} 33. Nxb4 $18 {[%emt 0:02:44]} cxb4 {[%emt 0:00:03]} 34. Bxb7 {[%emt 0:03:14]} (34. Rxb4 Bc3 35. Rxb7 Bxe1 $17) 34... Bc3 {[%emt 0:04:39]} 35. Kf1 {[%emt 0:00:51]} Rd8 {[%emt 0:01:15] [#]} 36. Bd5 $1 {[%emt 0:01:09]} (36. Bxa6 Be4 (36... Rd1 $2 37. Bb7 $18) 37. f3 Ba8 $19) 36... Rxd5 {[%emt 0:00:36]} 37. cxd5 {[%emt 0:00:10][%mdl 4096] Endspiel. Und f3 würde nun gewinnen. KRN-KB} Bd7 {[%emt 0:00:02]} (37... Be4 $142 38. d6 Kf6) 38. Ra2 {[%emt 0:01:39]} Bb5+ {[%emt 0:00:04]} 39. Re2 $1 {[%emt 0:00:19]} f5 {[%emt 0:00:41] [#]} (39... Kf6 $142 40. e4 Ke7) 40. f4 $1 {[%emt 0:00:00]} Kf6 {[%emt 0:00:00] [#]} (40... Kf8 41. Kf2) 41. Kf2 $1 {[%emt 0:22:00]} Bxe2 {[%emt 0:12:01]} (41... Ke7 42. Rc2) 42. Kxe2 {[%emt 0:00:07] KB-KN} Ke7 {[%emt 0:00:22]} 43. Nf3 {[%emt 0:03:03]} Kd6 {[%emt 0:00:08]} 44. Ng5 {[%emt 0:02:17]} h6 {[%emt 0:10:54]} 45. Nf7+ {[%emt 0:01:54]} Kxd5 {[%emt 0:00:04]} 46. Nxh6 {[%emt 0:00:20]} Ke6 {[%emt 0:00:05]} 47. g4 {[%emt 0:00:26]} Bf6 {[%emt 0:00:04]} 48. g5 {[%emt 0:02:27]} Bd8 {[%emt 0:00:03]} 49. Kd3 {[%emt 0:02:21]} (49. e4 $142 fxe4 50. Ke3 Bxa5 51. Kxe4) 49... Bxa5 {[%emt 0:00:08]} 50. e4 {[%emt 0:00:28]} fxe4+ {[%emt 0:01:32]} 51. Kxe4 {[%emt 0:00:02]} Bd8 {[%emt 0:01:01]} 52. f5+ {[%emt 0:00:27]} gxf5+ {[%emt 0:00:03]} 53. Nxf5 {[%emt 0:00:05] Weiss droht Nd4+ und Matt.} a5 {[%emt 0:00:04]} 54. Nd4+ {[%emt 0:00:36]} Kf7 {[%emt 0:00:35]} 55. Nc6 {[%emt 0:00:51]} Bc7 {[%emt 0:02:19]} 56. h5 {[%emt 0:00:17]} Kg7 {[%emt 0:00:03]} 57. Nd4 {[%emt 0:00:33] Weiss will mit Nf5+ Matt setzen.} Kh7 {[%emt 0:00:24]} 58. g6+ {[%emt 0:01:04] Gewichteter Fehlerwert: Weiß=0.04 (makellos) /Schwarz=0.26 (präzise) .  Fehler:       	Weiß=1     	Schwarz=6     Ungenau:       	Weiß=1     	Schwarz=1     OK:         	Weiß=13    	Schwarz=14    Bester:       	Weiß=9     	Schwarz=2     Stark:        	Weiß=3     	---} 1-0

[Event "Austrian Bundesliga 2023-24"]
[Site "Austria"]
[Date "2024.03.22"]
[Round "9.22"]
[White "Schreiner, Peter"]
[Black "Lanka, Zigurds"]
[Result "1/2-1/2"]
[ECO "A48"]
[WhiteElo "2400"]
[BlackElo "2357"]
[Annotator "TA"]
[PlyCount "39"]
[EventDate "2023.10.21"]
[EventType "team-tourn"]
[EventCountry "AUT"]
[SourceTitle "playchess.com"]
[Source "ChessBase"]
[SourceQuality "1"]
[TimeControl "40/5400+30:1800+30"]

{[%evp 12,39,18,8,32,19,18,13,36,29,25,28,43,50,73,-10,-23,-29,52,18,12,0,12,0,15,0,7,0,26,0]} 1. d4 {[%emt 0:00:03]} Nf6 {[%emt 0:00:09]} 2. Nf3 {[%emt 0:00:11]} g6 {[%emt 0:00:09]} 3. c4 {[%emt 0:00:09]} Bg7 {[%emt 0:00:08]} 4. g3 {[%emt 0:00:07]} c5 {[%emt 0:00:13]} 5. Bg2 {[%emt 0:00:15]} cxd4 {[%emt 0:00:12]} 6. Nxd4 {[%emt 0:00:09]} O-O {[%emt 0:00:13]} 7. Nc3 {[%emt 0:00:22]} Qc7 {[%emt 0:00:31]} 8. Qa4 {[%emt 0:22:33]} d6 {[%emt 0:05:27]} 9. O-O {[%emt 0:04:18]} a6 {[%emt 0:06:28] Die Stellung ist ausgeglichen.} 10. Bg5 {[%emt 0:05:12]} Nbd7 {[%emt 0:05:34]} 11. Rac1 {[%emt 0:02:52]} Qc5 {[%emt 0:03:20]} 12. Nf3 {[%emt 0:04:38][%cal Oc3d5]} h6 {[%emt 0:01:59]} 13. b4 {[%emt 0:13:29] Weiß steht aktiver.} (13. Be3 $16 Qh5 14. Qa3) 13... Qxc4 $11 {[%emt 0:05:00]} 14. Be3 {[%emt 0:01:18]} e5 {[%emt 0:19:58]} (14... Ng4 $11 15. Bd2 Qc7) 15. Rfd1 {[%emt 0:04:37][%mdl 1024] Weiss hat Kompensation.} Qe6 {[%emt 0:01:08]} 16. Nb5 {[%emt 0:02:33] [#] Nc7 ist eine echte Drohung.} Ne8 {[%emt 0:01:44]} 17. Nc3 {[%emt 0:13:12]} Nef6 {[%emt 0:04:19]} 18. Nb5 {[%emt 0:00:28] Droht stark Nc7.} Ne8 {[%emt 0:00:28]} 19. Nc3 {[%emt 0:02:52]} Nef6 {[%emt 0:02:19]} 20. Nb5 {[%emt 0:00:18] Gewichteter Fehlerwert: Weiß=0.17 (sehr präzise) /Schwarz=0.15 (sehr präzise) .  Fehler:       	Weiß=1     	Schwarz=1     Ungenau:       	Weiß=2     	---        OK:         	Weiß=5     	Schwarz=8} 1/2-1/2

[Event "Austrian Bundesliga 2023-24"]
[Site "Austria"]
[Date "2024.03.22"]
[Round "9.23"]
[White "Maiwald, Jens-Uwe"]
[Black "Dotzer, Lukas"]
[Result "1/2-1/2"]
[ECO "B20"]
[WhiteElo "2438"]
[BlackElo "2338"]
[Annotator "TA"]
[PlyCount "111"]
[EventDate "2023.10.21"]
[EventType "team-tourn"]
[EventCountry "AUT"]
[SourceTitle "playchess.com"]
[Source "ChessBase"]
[SourceQuality "1"]
[TimeControl "40/5400+30:1800+30"]

{[%evp 39,111,-97,-82,-112,-122,-112,-103,-112,0,0,0,-119,-133,-123,-52,-40,-39,-65,-32,-19,-20,-19,0,-32,-33,-35,-35,-60,-60,-67,-60,-69,-65,-81,-63,-83,-79,-107,-114,-123,-99,-103,-62,-69,-15,-20,-8,-8,0,-4,0,0,0,0,0,0,0,0,0,0,0,0,0,0,0,0,0,0,0,0,0,0,0,0]} 1. e4 {[%emt 0:00:15]} c5 {[%emt 0:00:04]} 2. d3 {[%emt 0:01:15]} d6 {[%emt 0:04:52]} 3. f4 {[%emt 0:00:32]} g6 {[%emt 0:05:21]} 4. Nf3 {[%emt 0:01:58]} Bg7 {[%emt 0:00:37]} 5. Be2 {[%emt 0:03:39]} Nc6 {[%emt 0:07:49]} 6. O-O {[%emt 0:00:39]} Nf6 {[%emt 0:05:03] B21: Sicilian: 2 f4 and Morra Gambit.} 7. Qe1 {[%emt 0:05:13]} c4 {[%emt 0:11:51]} 8. Nc3 {[%emt 0:03:16]} cxd3 {[%emt 0:02:12]} 9. Bxd3 {[%emt 0:00:57]} O-O {[%emt 0:05:28]} 10. Qh4 $146 {[%emt 0:11:14]} ({Predecessor:} 10. Be3 Nb4 11. h3 d5 12. e5 Ne8 13. a3 Nxd3 14. cxd3 Nc7 15. Ne2 Qd7 16. Ned4 {1-0 Niedbala,B (1973)-Manko,M (1814) Krakow op-B 29th 2018 (5)}) 10... Bg4 {[%emt 0:04:25]} 11. f5 {[%emt 0:13:59]} Bxf3 {[%emt 0:07:00]} 12. Rxf3 {[%emt 0:02:48]} Qb6+ {[%emt 0:07:06]} 13. Kh1 {[%emt 0:00:20]} Ne5 {[%emt 0:00:57]} 14. Rh3 {[%emt 0:00:44]} h5 {[%emt 0:05:50]} 15. Nd1 {[%emt 0:18:23]} Nfg4 {[%emt 0:02:42]} 16. Bg5 {[%emt 0:03:14]} Rfc8 {[%emt 0:08:00]} 17. Rg3 {[%emt 0:10:39]} Nxd3 {[%emt 0:05:10]} 18. cxd3 {[%emt 0:00:06]} Be5 {[%emt 0:07:35]} 19. fxg6 {[%emt 0:10:33]} fxg6 {[%emt 0:00:46]} 20. Rxg4 {[%emt 0:01:55]} (20. Rf3 Nxh2 (20... Bxb2 $2 21. Rb1 $18) (20... Bxh2 $2 21. Ne3 $18) 21. Rf2 Ng4) 20... hxg4 {[%emt 0:00:10]} 21. Qxg4 {[%emt 0:01:35]} Rf8 {[%emt 0:03:18]} (21... Bxb2 22. Rb1 (22. Be3 Qb4 $11) 22... Rf8 23. Ne3 $16 (23. Rxb2 $2 Rf1#) (23. Nxb2 Qxb2 24. Qe6+ Kg7 $17)) 22. Ne3 {[%emt 0:00:30]} Qxb2 {[%emt 0:01:23]} 23. Rg1 {[%emt 0:00:07]} Qf2 {[%emt 0:03:40]} (23... Qxa2 $6 24. Bxe7 Kh7 25. Qh4+ Kg8 26. Qg4 $11) ({Better is} 23... Kg7 $17 {White must now prevent ...Bd4.} 24. Bxe7 Rf4) 24. Bh6 $11 {[%emt 0:06:51]} Bg7 {[%emt 0:00:29]} 25. Bxg7 {[%emt 0:01:33]} (25. Qxg6 Qf6 26. Qxf6 Rxf6 27. Bxg7 Kxg7 28. Nf5+ Kf7 $14) (25. Nd5 $1 $11 Qf7 (25... Bxh6 26. Qxg6+ Kh8 27. Qxh6+ Kg8 28. Nxe7+ Kf7 29. Nf5) 26. Bxg7 Kxg7 27. Nc7) 25... Kxg7 $17 {[%emt 0:00:06]} 26. Nf5+ {[%emt 0:00:07] [#]} Rxf5 {[%emt 0:01:02]} ({Black should play} 26... Kf7 $1 $17 27. Ng3 Ke8 (27... Qxa2 $2 28. h3 $19)) 27. exf5 $15 {[%emt 0:00:07]} Qxf5 {[%emt 0:00:06]} (27... Qxa2 $2 28. Qxg6+ (28. fxg6 Qf2 $16) 28... Kf8 29. Qh6+ Kg8 30. f6 exf6 31. Qg6+ (31. Qxf6 Qf7 $18) 31... Kh8 32. Qxf6+ Kh7 33. Re1 $18 (33. Qxd6 Qf7 $18)) 28. Qe2 {[%emt 0:01:01]} Qe5 {[%emt 0:00:43]} 29. Qf3 {[%emt 0:00:06]} Rh8 {[%emt 0:00:31]} 30. h3 $1 {[%emt 0:00:06]} Qf5 {[%emt 0:00:32]} 31. Qe2 {[%emt 0:00:16]} e5 {[%emt 0:00:35]} 32. Rf1 {[%emt 0:00:09]} Qe6 {[%emt 0:00:25]} 33. Qf2 {[%emt 0:01:52]} b6 {[%emt 0:00:28]} 34. Qf3 {[%emt 0:00:41]} d5 {[%emt 0:00:33]} (34... Qxa2 35. Qf6+ Kh7 36. Rc1 (36. Qxd6 Qe2 $18) 36... Kh6 37. Qxh8+ (37. Qh4+ Kg7 $18) 37... Kg5 38. Qd8+ Kh6 39. Qf6 (39. Qxd6 Qf2 $18) (39. Qh4+ Kg7 $18)) 35. Rc1 {[%emt 0:00:43]} Rf8 {[%emt 0:00:26]} 36. Qg3 {[%emt 0:00:27]} Rf7 {[%emt 0:00:33]} 37. Re1 {[%emt 0:00:27]} Re7 {[%emt 0:00:31]} 38. a4 {[%emt 0:00:21]} e4 {[%emt 0:00:21]} 39. dxe4 {[%emt 0:00:18]} dxe4 {[%emt 0:00:07]} 40. Qe3 {[%emt 0:00:00]} Qe5 {[%emt 0:00:00]} 41. Kg1 {[%emt 0:11:25]} Qb2 {[%emt 0:28:06]} (41... Qd5 $15) 42. Rd1 {[%emt 0:01:59]} Qb4 {[%emt 0:01:34]} 43. Qd4+ {[%emt 0:10:06]} Qxd4+ {[%emt 0:00:06]} 44. Rxd4 {[%emt 0:00:03]} e3 {[%emt 0:02:13]} 45. Kf1 {[%emt 0:00:08]} Kf6 {[%emt 0:00:51]} 46. Ke2 {[%emt 0:00:56]} Kf5 {[%emt 0:00:30]} 47. h4 {[%emt 0:04:15]} Re4 {[%emt 0:01:19]} 48. Rxe4 $1 {[%emt 0:00:16]} Kxe4 {[%emt 0:00:07]} 49. g4 {[%emt 0:00:03]} a6 {[%emt 0:00:27]} (49... Kf4 $5 50. h5 $8 gxh5 (50... Kxg4 51. hxg6 Kg5 52. g7 Kf6 53. g8=Q Ke5 54. Qb8+ Kd5 55. Qxa7) 51. gxh5 Kg5 $11) 50. h5 {[%emt 0:00:08]} gxh5 {[%emt 0:00:05]} 51. gxh5 {[%emt 0:00:02]} Kf5 {[%emt 0:00:08]} 52. Kxe3 {[%emt 0:00:06]} b5 {[%emt 0:00:05]} 53. axb5 {[%emt 0:00:18]} axb5 {[%emt 0:00:06]} 54. Kd4 {[%emt 0:00:06]} Kg5 {[%emt 0:00:04]} 55. Kc5 {[%emt 0:00:05]} Kxh5 {[%emt 0:00:04]} 56. Kxb5 {[%emt 0:00:04]} 1/2-1/2

[Event "Austrian Bundesliga 2023-24"]
[Site "Austria"]
[Date "2024.03.22"]
[Round "9.24"]
[White "Hoefelsauer, Thomas"]
[Black "Platzgummer, Fabian"]
[Result "1/2-1/2"]
[ECO "D02"]
[WhiteElo "2302"]
[BlackElo "2304"]
[Annotator "TA"]
[PlyCount "77"]
[EventDate "2023.10.21"]
[EventType "team-tourn"]
[EventCountry "AUT"]
[SourceTitle "playchess.com"]
[Source "ChessBase"]
[SourceQuality "1"]
[TimeControl "40/5400+30:1800+30"]

{[%evp 9,77,-2,18,16,16,17,29,22,34,35,41,30,34,35,57,55,45,66,45,62,57,31,39,31,41,22,26,32,46,19,71,20,52,56,66,70,48,21,72,81,69,71,68,54,54,57,58,58,59,50,50,50,52,5,49,0,0,0,0,0,0,0,0,0,0,0,0,0,0,0]} 1. d4 {[%emt 0:00:03]} d5 {[%emt 0:00:08]} 2. Nf3 {[%emt 0:00:07]} Nf6 {[%emt 0:00:14]} 3. c3 {[%emt 0:00:17]} c6 {[%emt 0:03:51][%cal Bc7c6,Bc6c5,Bc5c4][%mdl 32]} 4. Qc2 {[%emt 0:00:09]} g6 {[%emt 0:07:08]} 5. h3 {[%emt 0:00:10]} Bg7 {[%emt 0:04:07]} 6. Bf4 {[%emt 0:00:09]} Qb6 {[%emt 0:05:59]} 7. Nbd2 {[%emt 0:01:38]} c5 {[%emt 0:06:03]} 8. e3 {[%emt 0:02:06] White has an edge.} Bf5 {[%emt 0:02:55][%cal Bc8f5,Bf5c2,Bc2a4,Ba4c6][%mdl 32]} 9. Qb3 {[%emt 0:00:21]} c4 {[%emt 0:03:08]} 10. Qxb6 {[%emt 0:02:00]} axb6 {[%emt 0:00:03]} 11. g4 Bc2 {[%emt 0:01:41]} 12. Rc1 {[%emt 0:06:07]} Ba4 {[%emt 0:02:56]} 13. b3 {[%emt 0:04:51]} cxb3 {[%emt 0:00:43]} 14. axb3 {[%emt 0:00:08]} Bc6 {[%emt 0:00:46]} 15. Bd3 {[%emt 0:07:56]} O-O {[%emt 0:05:56]} 16. O-O {[%emt 0:08:33]} b5 {[%emt 0:05:00]} 17. Ra1 {[%emt 0:05:20]} Nbd7 {[%emt 0:01:30]} 18. Ne5 {[%emt 0:06:02]} Rfc8 {[%emt 0:04:56]} 19. Rfb1 {[%emt 0:18:57]} (19. Nxc6 {simplifies} bxc6 20. Bh2 Ne8 21. Nf3) 19... Nb6 {[%emt 0:07:22]} (19... Nxe5 $11 20. Bxe5 e6) 20. c4 {[%emt 0:07:09] White is much more active.} (20. Nxc6 $16 bxc6 21. b4) 20... bxc4 {[%emt 0:05:26]} 21. Rxa8 Rxa8 {[%emt 0:00:23]} 22. bxc4 {[%emt 0:04:30]} Nxc4 {[%emt 0:00:12]} 23. Nxc6 {[%emt 0:00:51]} bxc6 {[%emt 0:00:58]} (23... Nxd2 $11 {remains equal.} 24. Rxb7 (24. Nxe7+ Kf8 $16) 24... Nf3+ 25. Kf1 Ne4) 24. Nxc4 $16 {[%emt 0:00:23]} dxc4 {[%emt 0:00:05]} 25. Bxc4 {[%emt 0:00:06]} e6 {[%emt 0:01:33]} 26. Rc1 {[%emt 0:07:23]} Nd5 {[%emt 0:04:54]} 27. Bg3 {[%emt 0:00:48]} Bf8 {[%emt 0:00:58]} 28. Be2 {[%emt 0:01:00]} Nb4 {[%emt 0:07:34]} 29. Bf3 {[%emt 0:01:05]} Ra6 {[%emt 0:00:41]} 30. Rc4 {[%emt 0:00:58]} Be7 {[%emt 0:00:28]} 31. Be5 {[%emt 0:01:59]} (31. Kf1 $14 {might be stronger.}) 31... Kf8 {[%emt 0:01:02] [#]} 32. Bf6 {[%emt 0:02:15]} Bxf6 $11 {[%emt 0:06:26] The position is equal.} 33. Rxb4 {[%emt 0:00:01][%mdl 4096] Endgame. KRB-KRB} Ra2 {[%emt 0:00:14]} 34. Rb1 {[%emt 0:04:58]} Bh4 {[%emt 0:00:46]} 35. Rf1 {[%emt 0:00:05]} Rc2 {[%emt 0:02:24]} 36. Be4 {[%emt 0:00:09]} Rc4 {[%emt 0:00:31]} 37. Bd3 {[%emt 0:03:41]} Rc3 {[%emt 0:00:16]} 38. Rd1 {[%emt 0:00:49]} c5 {[%emt 0:00:40]} 39. dxc5 {[%emt 0:00:06] Weighted Error Value: White=0.11 (very precise) /Black=0.11 (very precise) .  Mistake:       	White=3     	Black=2      Inaccurate:     	White=3     	Black=2      OK:         	White=11    	Black=12     Best:        	White=2     	Black=1} 1/2-1/2

[Event "Austrian Bundesliga 2023-24"]
[Site "Austria"]
[Date "2024.03.22"]
[Round "9.25"]
[White "Brkic, Ante"]
[Black "Mamedyarov, Shakhriyar"]
[Result "1/2-1/2"]
[ECO "B12"]
[WhiteElo "2633"]
[BlackElo "2734"]
[Annotator "TA"]
[PlyCount "34"]
[EventDate "2023.10.21"]
[EventType "team-tourn"]
[EventCountry "AUT"]
[SourceTitle "playchess.com"]
[Source "ChessBase"]
[SourceQuality "1"]
[TimeControl "40/5400+30:1800+30"]

{[%evp 9,34,10,22,0,0,2,0,12,41,11,29,20,15,0,23,15,24,22,14,31,16,0,11,0,11,0,0]} 1. e4 {[%emt 0:00:02]} c6 {[%emt 0:00:10]} 2. d4 {[%emt 0:00:07]} d5 {[%emt 0:00:05]} 3. e5 {[%emt 0:00:07]} c5 {[%emt 0:00:16]} 4. Nf3 {[%emt 0:00:47]} cxd4 {[%emt 0:01:12]} 5. Nxd4 {[%emt 0:01:37]} Nc6 {[%emt 0:00:31]} 6. Nxc6 {[%emt 0:00:41]} bxc6 {[%emt 0:00:08]} 7. Bd3 {[%emt 0:00:05]} e6 {[%emt 0:00:06]} 8. O-O {[%emt 0:00:20]} a5 {[%emt 0:01:16]} 9. Nd2 {[%emt 0:07:10]} Ba6 {[%emt 0:01:29]} 10. Bxa6 {[%emt 0:03:49]} Rxa6 {[%emt 0:00:02]} 11. Nf3 {[%emt 0:00:07][%cal Oc2c4]} Ne7 {[%emt 0:00:36] [#]} 12. c4 $1 {[%emt 0:00:14]} dxc4 {[%emt 0:06:11]} 13. Qc2 {[%emt 0:11:03]} Qd3 {[%emt 0:00:19] Dodges Be3} 14. Qa4 {[%emt 0:19:47][%mdl 1024] Rd1 is the strong threat. White has compensation.} Qd5 {[%emt 0:01:15]} 15. Qc2 {[%emt 0:02:40] The position is equal.} Qd3 {[%emt 0:00:21] Against Be3} 16. Qa4 {[%emt 0:00:18] [#] aiming for Rd1.} Qd5 {[%emt 0:00:04]} 17. Qc2 {[%emt 0:00:05]} Qd3 {A rather calm draw.   Weighted Error Value: White=0.10 (very precise) /Black=0.06 (flawless) .  Inaccurate:     	White=1     	Black=1      OK:         	White=3     	Black=7} 1/2-1/2

[Event "Austrian Bundesliga 2023-24"]
[Site "Austria"]
[Date "2024.03.22"]
[Round "9.26"]
[White "Vachier-Lagrave, Maxime"]
[Black "Martinovic, Sasa"]
[Result "1/2-1/2"]
[ECO "C02"]
[WhiteElo "2728"]
[BlackElo "2558"]
[Annotator "TA"]
[PlyCount "67"]
[EventDate "2023.10.21"]
[EventType "team-tourn"]
[EventCountry "AUT"]
[SourceTitle "playchess.com"]
[Source "ChessBase"]
[SourceQuality "1"]
[TimeControl "40/5400+30:1800+30"]

{[%evp 14,67,27,24,15,7,23,20,14,12,15,25,17,0,26,18,8,0,15,0,0,-14,-18,-31,-32,-29,-14,-34,-12,-15,-18,-41,-45,-63,-63,-44,-13,-12,-12,-10,-11,-17,-8,-22,-13,-24,-27,-38,-27,-29,-4,-4,0,-25,0,-14]} 1. e4 {[%emt 0:00:18][%cal Be2e4,Be4e5][%mdl 32]} e6 {[%emt 0:00:03]} 2. d4 {[%emt 0:00:08]} d5 {[%emt 0:00:04]} 3. e5 {[%emt 0:00:03]} c5 {[%emt 0:00:07]} 4. c3 {[%emt 0:00:03]} Nc6 {[%emt 0:00:06]} 5. Nf3 {[%emt 0:00:04]} Bd7 {[%emt 0:00:08]} 6. Be2 {[%emt 0:00:09]} f6 {[%emt 0:00:00]} 7. O-O {[%emt 0:00:16]} fxe5 {[%emt 0:00:22]} 8. Nxe5 {[%emt 0:17:19]} cxd4 {[%emt 0:00:08]} 9. Nxc6 {[%emt 0:00:04]} bxc6 {[%emt 0:00:08]} 10. Qxd4 {[%emt 0:04:51]} Nf6 {[%cal Bg8f6,Bf6e8,Be8d6,Bd6f5][%mdl 32] Repels Bh5+} 11. Bf4 {[%emt 0:01:01] Repels Bd6} Be7 {[%emt 0:00:37]} 12. Nd2 {[%emt 0:05:38]} O-O {[%cal Of6e4]} 13. Qe5 {[%emt 0:00:30]} Ne8 {[%emt 0:11:30] [#] Threatens to win with ...Bd6.} 14. Qe3 {[%emt 0:08:16]} Qb6 {[%emt 0:13:16]} 15. Nb3 {[%emt 0:08:42]} Nd6 16. Rad1 {[%emt 0:01:59]} Nf5 {[%emt 0:05:10]} 17. Qd2 {[%emt 0:06:17]} Bf6 {[%emt 0:04:22]} 18. c4 {[%emt 0:01:26]} a5 {[%emt 0:08:55]} 19. cxd5 {[%emt 0:00:06]} cxd5 20. Rc1 {[%emt 0:00:09]} Rfc8 {[%emt 0:04:59]} 21. Rxc8+ {[%emt 0:02:26]} Rxc8 22. Nxa5 {[%emt 0:02:10]} Qxb2 {[%emt 0:03:15]} ({Worse is} 22... Bxb2 23. Rb1 Ra8 (23... Nd4 $2 24. Bd3 $18) 24. Rxb2 $16 (24. Qxb2 Qxb2 25. Rxb2 Rxa5 $14)) 23. Bd3 {[%emt 0:00:30] Prevents Rc2.} Qxd2 {[%emt 0:03:43]} 24. Bxd2 {[%emt 0:00:06]} Bc3 {[%emt 0:00:16]} 25. Bxc3 {[%emt 0:00:42]} Rxc3 {[%emt 0:00:04]} 26. Bxf5 {[%emt 0:00:08]} exf5 $11 {[%emt 0:00:04][%mdl 4096] Endgame. KRB-KRN} 27. Nb3 {[%emt 0:00:25]} Kf7 {[%emt 0:09:23]} 28. f4 {[%emt 0:02:03]} Ke6 {[%emt 0:02:13]} 29. Rd1 {[%emt 0:00:43]} Kd6 {[%emt 0:02:51]} 30. Rd2 {[%emt 0:00:30]} g6 {[%emt 0:08:00]} 31. Nd4 {[%emt 0:00:11]} Kc5 {[%emt 0:01:01]} 32. Nb3+ {[%emt 0:00:26]} Kd6 {[%emt 0:00:08]} 33. Nd4 {[%emt 0:00:04] Wards off Bb5} Kc5 {[%emt 0:00:04]} 34. Nb3+ {[%emt 0:00:49] Weighted Error Value: White=0.06 (flawless) /Black=0.07 (flawless) .  Inaccurate:     	---       	Black=2      OK:         	White=15    	Black=9} 1/2-1/2